bitfinex/quotes_SOLUSD_20251128
["timestamp","ask_amount","ask_price","bid_price","bid_amount"]
[1764300703705,1e-08,139.69,139.64,10.6141083]
[1764300703892,1e-08,139.69,139.68,3.45283646]
[1764300704209,1e-08,139.69,139.67,3.45283646]
[1764300704375,3.83,139.68,139.66,3.45283646]
[1764300704580,8.80994492,139.67,139.65,3.45283646]
[1764300704779,9.47994492,139.67,139.65,3.45283646]
[1764300704992,0.67,139.66,139.65,3.45283646]
[1764300706502,0.67,139.66,139.65,10.6135955]
[1764300709403,0.67,139.66,139.64,3.45283646]
[1764300709597,0.67,139.66,139.65,3.45283646]
[1764300711104,0.67,139.66,139.65,10.6135955]
[1764300711286,8.80994492,139.67,139.65,10.6135955]
[1764300711486,9.47994492,139.67,139.66,3.45283646]
[1764300712400,8.80994493,139.69,139.66,11.30308277]
[1764300712591,9.47994493,139.69,139.68,2.20631752]
[1764300714210,1e-08,139.69,139.68,2.20631752]
[1764300714384,0.67000001,139.69,139.68,9.36553859]
[1764300714591,1e-08,139.69,139.68,9.36553859]
[1764300718915,0.67000001,139.69,139.68,2.20631752]
[1764300720509,0.67000001,139.69,139.64,36.49593583]
[1764300720510,8.80994492,139.68,139.62,0.69]
[1764300720713,3.16,139.67,139.66,2.20631752]
[1764300720894,3.83,139.67,139.65,2.20631752]
[1764300721091,8.80994492,139.65,139.63,2.20631752]
[1764300721295,3.16,139.64,139.63,2.20631752]
[1764300721505,3.83,139.64,139.63,2.20631752]
[1764300722392,3.83,139.64,139.62,7.16229766]
[1764300722593,3.16,139.64,139.63,2.20631752]
[1764300723018,3.83,139.64,139.63,2.20631752]
[1764300723817,3.16,139.64,139.63,2.20631752]
[1764300724018,3.83,139.64,139.62,9.36861518]
[1764300724319,3.83,139.64,139.62,2.20631752]
[1764300724620,3.83,139.64,139.63,2.20631752]
[1764300725917,3.83,139.64,139.62,9.36859781]
[1764300726115,0.67,139.63,139.62,9.36859781]
[1764300726416,0.67,139.63,139.58,25.82413408]
[1764300726593,8.80994492,139.62,139.59,2.20631752]
[1764300726797,3.16,139.61,139.58,2.20631752]
[1764300726995,3.83,139.61,139.58,2.20631752]
[1764300727212,0.67,139.6,139.58,2.20631752]
[1764300728713,0.67,139.6,139.57,9.3711234]
[1764300730317,0.67,139.6,139.57,10.0611234]
[1764300731208,0.67,139.6,139.57,9.3711234]
[1764300731720,7.83337923,139.6,139.56,9.37156729]
[1764300732095,0.68,139.59,139.56,9.37156729]
[1764300733321,0.68,139.59,139.57,2.20631752]
[1764300734202,0.68,139.59,139.56,10.08156729]
[1764300736116,0.68,139.59,139.57,9.37096995]
[1764300738105,3.16,139.61,139.58,2.91631752]
[1764300738305,3.16,139.61,139.58,2.20631752]
[1764300738505,0.68,139.6,139.58,2.20631752]
[1764300739927,0.68,139.6,139.58,9.37025747]
[1764300744229,0.68,139.6,139.59,2.20631752]
[1764300745241,0.68,139.6,139.59,9.37015447]
[1764300747741,0.68,139.6,139.58,9.37066771]
[1764300749728,0.68,139.6,139.57,7.16467272]
[1764300750044,2.88631752,139.6,139.57,7.16467272]
[1764300750241,0.68,139.6,139.57,7.16467272]
[1764300750821,0.68,139.6,139.57,9.37099024]
[1764300755653,0.68,139.6,139.56,27.28431313]
[1764300756029,8.80994492,139.59,139.56,9.37169441]
[1764300756452,0.68,139.58,139.56,9.37169441]
[1764300757248,0.68,139.58,139.57,2.20631752]
[1764300758354,0.68,139.58,139.57,9.37118102]
[1764300759231,3.84,139.61,139.57,27.99333979]
[1764300759428,3.16,139.61,139.59,2.20631752]
[1764300759731,0.68,139.6,139.59,2.20631752]
[1764300760555,0.68,139.6,139.59,9.37015447]
[1764300763140,3.86,139.61,139.59,9.37015447]
[1764300764060,0.7,139.6,139.59,9.37015447]
[1764300766968,3.16,139.61,139.59,9.37015447]
[1764300767140,3.86,139.65,139.6,2.85631752]
[1764300767480,3.86,139.65,139.63,2.20631752]
[1764300768038,3.16,139.65,139.63,2.20631752]
[1764300768357,0.7,139.64,139.63,2.20631752]
[1764300769235,9.50994492,139.64,139.61,7.1626079]
[1764300769435,9.50994492,139.64,139.61,9.36892542]
[1764300769636,0.7,139.63,139.61,9.36892542]
[1764300773868,0.7,139.63,139.6,2.20631752]
[1764300774156,3.16,139.62,139.6,2.20631752]
[1764300774541,3.86,139.62,139.6,3.45141606]
[1764300775236,3.86,139.62,139.59,7.16383695]
[1764300775441,3.86,139.62,139.6,3.45141606]
[1764300776766,3.86,139.62,139.6,10.61441526]
[1764300780066,3.16,139.62,139.6,10.61441526]
[1764300780372,0.7,139.61,139.6,10.61441526]
[1764300780748,0.7,139.61,139.59,3.45141606]
[1764300781570,3.86,139.62,139.6,3.45141606]
[1764300781749,8.80994492,139.64,139.61,3.45141606]
[1764300782068,8.80994492,139.64,139.63,3.45141606]
[1764300782268,9.50994492,139.64,139.62,3.45141606]
[1764300782450,8.80994492,139.64,139.62,3.45141606]
[1764300783654,9.50994492,139.64,139.61,7.81267655]
[1764300783854,8.80994492,139.64,139.63,3.45141606]
[1764300784164,3.16,139.65,139.63,3.45141606]
[1764300784362,3.16,139.65,139.63,10.61297165]
[1764300784662,3.86,139.65,139.64,3.45141606]
[1764300785372,3.86,139.65,139.64,10.6126879]
[1764300785966,3.86,139.65,139.61,7.1627379]
[1764300786174,0.7,139.64,139.63,3.45141606]
[1764300786369,3.16,139.65,139.63,3.45141606]
[1764300786573,3.16,139.65,139.64,3.45141606]
[1764300786759,3.86,139.65,139.64,3.45141606]
[1764300787500,3.16,139.65,139.64,11.2626879]
[1764300788359,3.16,139.65,139.64,10.6126879]
[1764300788679,3.16,139.65,139.64,11.2626879]
[1764300789966,8.80994492,139.68,139.64,29.1658675]
[1764300790165,12.66994492,139.68,139.67,3.45141606]
[1764300790367,12.65994492,139.68,139.67,3.45141606]
[1764300790656,3.16,139.68,139.67,3.45141606]
[1764300790968,1e-08,139.69,139.67,4.12141606]
[1764300791286,1e-08,139.69,139.68,4.12141606]
[1764300791466,1e-08,139.69,139.68,11.28063713]
[1764300795165,0.2,139.71,139.68,11.28063713]
[1764300795377,0.2,139.71,139.7,3.45141606]
[1764300795790,0.2,139.71,139.7,4.12141606]
[1764300795989,0.2,139.71,139.7,11.27961219]
[1764300798369,0.2,139.71,139.7,7.15819613]
[1764300798572,0.2,139.71,139.7,10.60961219]
[1764300799790,0.2,139.71,139.7,11.27961219]
[1764300801589,0.2,139.71,139.7,7.15819613]
[1764300801771,0.87,139.71,139.7,3.45141606]
[1764300802975,0.87,139.71,139.7,10.60961219]
[1764300808884,0.87,139.71,139.7,3.45141606]
[1764300809399,0.87,139.71,139.68,7.15888628]
[1764300809400,0.87,139.71,139.69,3.45141606]
[1764300809595,0.67,139.7,139.69,3.45141606]
[1764300813807,0.67,139.7,139.68,3.45141606]
[1764300816001,3.83,139.7,139.68,3.45141606]
[1764300816296,8.80994492,139.69,139.66,10.61150462]
[1764300816513,0.67,139.68,139.66,10.61150462]
[1764300818784,0.67,139.68,139.66,3.45141606]
[1764300820806,0.67,139.68,139.65,10.61201438]
[1764300826694,3.16,139.67,139.65,10.61201438]
[1764300827315,3.16,139.67,139.66,4.17141606]
[1764300827487,3.82,139.67,139.65,10.61201438]
[1764300829002,3.16,139.67,139.65,10.61201438]
[1764300829796,3.82,139.67,139.65,10.61201438]
[1764300834619,3.82,139.67,139.66,3.45141606]
[1764300836019,3.82,139.67,139.65,10.61201438]
[1764300836605,3.82,139.67,139.65,9.36786197]
[1764300837827,3.16,139.67,139.65,9.36786197]
[1764300838003,0.66,139.66,139.65,9.36786197]
[1764300838823,3.82,139.67,139.65,9.36786197]
[1764300841528,3.16,139.67,139.66,2.20726365]
[1764300841905,8.80994492,139.7,139.66,2.92726365]
[1764300842105,8.80994492,139.7,139.65,7.16059832]
[1764300842106,9.46994492,139.7,139.68,2.20726365]
[1764300843633,0.2,139.71,139.69,23.46757256]
[1764300843929,0.2,139.71,139.7,2.20726365]
[1764300844115,0.2,139.71,139.7,2.92726365]
[1764300844516,0.2,139.71,139.7,0.72]
[1764300844713,0.2,139.71,139.7,2.20726365]
[1764300845122,0.2,139.71,139.7,2.92726365]
[1764300845525,0.2,139.71,139.7,10.08545978]
[1764300846431,0.86,139.71,139.7,7.15819613]
[1764300847926,0.2,139.71,139.7,9.36545978]
[1764300848634,0.2,139.71,139.7,10.08545978]
[1764300848932,0.2,139.71,139.7,14.10545978]
[1764300850327,0.2,139.72,139.7,19.47272343]
[1764300850535,0.2,139.72,139.71,21.4333913]
[1764300851510,1e-08,139.72,139.71,21.4333913]
[1764300852321,1e-08,139.72,139.71,28.59107507]
[1764300852521,1e-08,139.72,139.71,31.45815029]
[1764300852919,0.2,139.73,139.71,31.45815029]
[1764300853124,1e-08,139.73,139.72,5.1045273]
[1764300853537,1e-08,139.73,139.72,7.97139703]
[1764300854132,1e-08,139.74,139.73,0.69]
[1764300854427,1e-08,139.74,139.73,10.05392292]
[1764300854634,0.2,139.75,139.73,28.83278692]
[1764300854635,1e-08,139.75,139.73,28.83278692]
[1764300854828,0.2,139.77,139.74,2.89726365]
[1764300855145,0.2,139.77,139.76,2.20726365]
[1764300855720,0.2,139.77,139.76,2.89726365]
[1764300856548,0.2,139.77,139.76,10.05238671]
[1764300856917,0.2,139.77,139.76,13.41238671]
[1764300857513,0.2,139.77,139.76,12.72238671]
[1764300860839,0.91,139.77,139.76,9.36238671]
[1764300861244,0.91,139.77,139.76,2.20726365]
[1764300861445,0.91,139.77,139.75,2.20726365]
[1764300861647,0.71,139.76,139.75,2.20726365]
[1764300861847,0.71,139.76,139.75,9.36289871]
[1764300873454,0.71,139.76,139.75,7.15563506]
[1764300873752,0.71,139.76,139.75,9.36289871]
[1764300877738,0.71,139.76,139.74,7.15585531]
[1764300877938,0.71,139.76,139.75,2.20726365]
[1764300881044,0.71,139.76,139.75,9.36289871]
[1764300881240,1e-08,139.77,139.76,0.67]
[1764300881461,1e-08,139.77,139.76,2.20726365]
[1764300882763,0.67000001,139.77,139.76,2.20726365]
[1764300883463,0.67000001,139.77,139.76,9.36238671]
[1764300883964,0.67000001,139.77,139.76,12.22905098]
[1764300884167,0.67000001,139.77,139.76,9.36238671]
[1764300887560,0.67000001,139.77,139.75,9.36287204]
[1764300887758,0.67000001,139.77,139.74,2.20726365]
[1764300887955,0.67000001,139.77,139.75,2.20726365]
[1764300888671,0.67000001,139.77,139.74,2.20726365]
[1764300888672,8.80994492,139.76,139.74,2.20726365]
[1764300889059,0.67,139.75,139.74,2.20726365]
[1764300889754,0.67,139.75,139.74,9.36341078]
[1764300890149,0.67,139.75,139.71,2.20726365]
[1764300890547,8.80994492,139.74,139.71,2.20726365]
[1764300890971,0.67,139.73,139.7,2.20726365]
[1764300891348,0.67,139.74,139.72,11.03631825]
[1764300891548,0.67,139.75,139.73,2.20726365]
[1764300891761,0.67,139.75,139.74,2.20726365]
[1764300892550,0.67,139.75,139.74,9.36341078]
[1764300894049,0.67000001,139.77,139.74,10.03341078]
[1764300894272,3.83000001,139.77,139.75,2.20726365]
[1764300894755,0.67,139.76,139.75,2.20726365]
[1764300895869,0.67,139.76,139.75,9.36289871]
[1764300896555,0.67,139.76,139.75,10.59957772]
[1764300899181,1e-08,139.77,139.75,11.26957772]
[1764300899482,0.2,139.78,139.76,2.86645884]
[1764300899679,0.87,139.78,139.77,3.44394266]
[1764300901171,0.87,139.78,139.77,10.5985538]
[1764300903875,0.87,139.78,139.74,3.53686973]
[1764300904082,9.00994492,139.78,139.77,3.44394266]
[1764300904578,9.67994492,139.78,139.77,3.44394266]
[1764300905585,0.67,139.78,139.77,3.44394266]
[1764300905794,0.67,139.78,139.77,10.5985538]
[1764300906369,0.2,139.79,139.77,10.5985538]
[1764300906574,0.87,139.79,139.78,3.44394266]
[1764300908484,0.87,139.79,139.78,10.59804195]
[1764300909074,0.2,139.79,139.78,10.59804195]
[1764300909273,0.2,139.79,139.78,14.71198461]
[1764300909478,0.2,139.8,139.78,14.71198461]
[1764300909702,0.2,139.8,139.79,7.55788532]
[1764300910994,0.2,139.8,139.79,14.71147284]
[1764300911801,0.2,139.83,139.81,16.308864]
[1764300911982,0.88,139.83,139.82,3.44394266]
[1764300913107,0.88,139.83,139.82,10.59599529]
[1764300913604,0.88,139.83,139.79,12.93388758]
[1764300913605,8.80994492,139.82,139.79,15.9630756]
[1764300913900,9.51994492,139.82,139.81,3.44394266]
[1764300914104,11.98994492,139.82,139.81,3.44394266]
[1764300914678,12.69994492,139.82,139.81,10.59650685]
[1764300915797,3.18,139.82,139.81,10.59650685]
[1764300915984,0.71,139.82,139.81,7.15256419]
[1764300916183,0.71,139.82,139.81,10.59650685]
[1764300917994,0.71,139.82,139.81,3.44394266]
[1764300918499,3.89,139.82,139.81,3.44394266]
[1764300921705,3.89,139.82,139.8,10.59683952]
[1764300921897,0.71,139.81,139.8,10.59683952]
[1764300926309,9.51994492,139.81,139.8,3.44394266]
[1764300926483,9.51994492,139.81,139.79,3.44394266]
[1764300926484,8.80994492,139.8,139.79,3.44394266]
[1764300926680,8.80994492,139.8,139.77,7.15441849]
[1764300926681,9.51994492,139.8,139.77,7.15441849]
[1764300926878,0.71,139.79,139.77,10.59836115]
[1764300927103,3.18,139.78,139.77,10.59836115]
[1764300927306,3.18,139.78,139.77,3.44394266]
[1764300927488,3.89,139.78,139.77,3.44394266]
[1764300927799,3.18,139.78,139.77,3.44394266]
[1764300928006,3.89,139.78,139.77,3.44394266]
[1764300929199,3.89,139.78,139.77,10.5985538]
[1764300929412,3.18,139.78,139.77,10.5985538]
[1764300929583,3.89,139.78,139.77,10.5985538]
[1764300936297,3.18,139.78,139.77,10.5985538]
[1764300940706,3.88,139.78,139.77,3.44394266]
[1764300941508,3.88,139.78,139.77,10.5985538]
[1764300942825,3.88,139.78,139.76,3.44394266]
[1764300942993,9.50994492,139.77,139.73,10.60029596]
[1764300943195,16.308864,139.7,139.67,3.44394266]
[1764300943425,12.68994492,139.69,139.66,3.54394266]
[1764300943801,16.308864,139.7,139.66,3.54394266]
[1764300943802,0.7,139.71,139.68,3.44394266]
[1764300944118,3.18,139.71,139.7,3.44394266]
[1764300944320,3.88,139.71,139.67,3.44394266]
[1764300944492,0.7,139.7,139.67,3.44394266]
[1764300944893,0.7,139.7,139.68,10.6029072]
[1764300945093,0.7,139.7,139.68,7.15896454]
[1764300947515,3.18,139.69,139.68,7.15896454]
[1764300948025,8.80994492,139.68,139.66,0.1]
[1764300948216,9.50994492,139.68,139.66,0.1]
[1764300953439,8.80994492,139.69,139.66,0.81]
[1764300953625,3.18,139.68,139.66,4.25394266]
[1764300956239,3.18,139.68,139.67,7.15973365]
[1764300958246,3.44394266,139.74,139.67,29.21301045]
[1764300958417,3.88,139.73,139.69,3.44394266]
[1764300958616,3.88,139.73,139.69,2.20581359]
[1764300958832,0.7,139.72,139.69,2.91581359]
[1764300960542,0.7,139.72,139.7,7.15819613]
[1764300961737,8.80994492,139.74,139.7,7.15819613]
[1764300961939,3.88,139.73,139.7,7.15819613]
[1764300962442,8.80994492,139.74,139.71,2.91581359]
[1764300962678,3.18,139.73,139.72,9.36298507]
[1764300964147,0.7,139.77,139.72,27.96591378]
[1764300964444,0.7,139.77,139.75,2.20581359]
[1764300964445,3.18,139.76,139.75,2.20581359]
[1764300964643,3.18,139.76,139.75,9.36144865]
[1764300964827,3.18,139.76,139.75,7.15563506]
[1764300965622,3.88,139.76,139.73,7.86631045]
[1764300965824,3.88,139.76,139.73,10.07212404]
[1764300966254,3.18,139.76,139.73,7.15631045]
[1764300966545,0.7,139.75,139.73,7.15631045]
[1764300966945,0.7,139.75,139.72,25.04941046]
[1764300967138,0.7,139.75,139.72,27.25522405]
[1764300971551,0.7,139.75,139.72,7.15717148]
[1764300973936,8.80994492,139.74,139.69,2.20581359]
[1764300974134,3.18,139.73,139.69,2.20581359]
[1764300974328,3.85,139.73,139.69,2.20581359]
[1764300974531,0.67,139.72,139.69,2.91581359]
[1764300974735,0.67,139.72,139.69,2.20581359]
[1764300975356,0.67,139.72,139.68,18.60778626]
[1764300975534,0.67,139.72,139.69,2.20581359]
[1764300975736,17.88839606,139.76,139.69,2.20581359]
[1764300975737,0.67,139.81,139.71,11.02906795]
[1764300976053,1.86,139.8,139.78,2.20581359]
[1764300976458,2.53,139.8,139.78,2.20581359]
[1764300976646,0.67,139.79,139.77,2.20581359]
[1764300977032,1.86,139.8,139.77,2.20581359]
[1764300977236,2.53,139.8,139.77,2.20581359]
[1764300977432,2.53,139.8,139.78,7.15409929]
[1764300977682,2.53,139.8,139.78,9.35991288]
[1764300978048,2.53,139.8,139.78,7.15409929]
[1764300978248,2.53,139.8,139.78,9.35991288]
[1764300978562,2.53,139.8,139.79,2.20581359]
[1764300979043,1.86,139.8,139.79,2.20581359]
[1764300979642,1.86,139.8,139.79,9.35940111]
[1764300980048,1.86,139.8,139.79,11.5652147]
[1764300981268,3.18,139.8,139.79,11.5652147]
[1764300983272,3.85,139.8,139.79,11.5652147]
[1764300983473,3.18,139.8,139.79,11.5652147]
[1764300985068,3.85,139.8,139.79,11.5652147]
[1764300985368,3.18,139.8,139.79,11.5652147]
[1764300986574,3.85,139.8,139.79,11.5652147]
[1764300987967,3.18,139.8,139.79,11.5652147]
[1764300990467,3.85,139.8,139.79,11.5652147]
[1764300991646,3.85,139.8,139.79,2.20581359]
[1764300991850,12.65994492,139.8,139.79,2.20581359]
[1764300994565,8.80994492,139.79,139.76,25.04220176]
[1764300994872,9.47994492,139.79,139.78,2.20581359]
[1764300995272,3.18,139.8,139.78,2.20581359]
[1764300995455,3.18,139.8,139.79,2.20581359]
[1764300995855,3.85,139.8,139.79,2.20581359]
[1764300996173,8.80994492,139.79,139.76,25.04220176]
[1764300996473,9.47994492,139.79,139.76,25.04220176]
[1764300996960,0.67,139.78,139.76,25.04220176]
[1764300997274,3.18,139.77,139.76,25.04220176]
[1764300998456,3.18,139.77,139.76,27.24801535]
[1764301001279,3.18,139.77,139.76,27.91801535]
[1764301001661,3.18,139.77,139.76,27.24801535]
[1764301004981,3.18,139.77,139.76,25.04220176]
[1764301005181,8.80994492,139.76,139.67,7.82973365]
[1764301005365,11.72575851,139.76,139.7,2.20581359]
[1764301005564,0.71,139.75,139.7,2.20581359]
[1764301005973,0.71,139.75,139.72,2.20581359]
[1764301006176,12.69994492,139.75,139.74,2.20581359]
[1764301007190,12.69994492,139.75,139.74,9.36196072]
[1764301013188,8.80994492,139.74,139.66,0.1]
[1764301013382,11.01575851,139.72,139.67,2.20581359]
[1764301013573,3.18,139.71,139.67,2.20581359]
[1764301013767,3.89,139.71,139.67,2.20581359]
[1764301014090,8.80994492,139.69,139.67,2.20581359]
[1764301014487,9.51994492,139.69,139.67,2.20581359]
[1764301014877,9.51994492,139.69,139.67,9.3654795]
[1764301015383,9.51994492,139.69,139.68,2.20581359]
[1764301016592,12.69994492,139.69,139.67,9.3654795]
[1764301018792,12.69994492,139.69,139.67,3.44758938]
[1764301019092,12.69994492,139.69,139.66,7.26024631]
[1764301019285,12.69994492,139.69,139.66,10.70783569]
[1764301019488,12.69994492,139.69,139.67,3.44758938]
[1764301020500,0.71,139.68,139.66,0.1]
[1764301021387,8.80994492,139.67,139.66,0.1]
[1764301021785,9.51994492,139.67,139.66,0.1]
[1764301024505,16.67967857,139.67,139.66,0.1]
[1764301027784,20.12726795,139.67,139.66,0.1]
[1764301028000,16.67967857,139.67,139.66,0.1]
[1764301028692,20.12726795,139.67,139.66,0.1]
[1764301029005,16.67967857,139.67,139.66,0.1]
[1764301030102,15.96967857,139.67,139.66,0.1]
[1764301030281,19.14967857,139.67,139.66,0.1]
[1764301030815,19.85967857,139.67,139.66,0.1]
[1764301034408,12.69994492,139.67,139.66,0.1]
[1764301035706,8.80994492,139.67,139.66,0.1]
[1764301035913,11.98994492,139.67,139.66,0.1]
[1764301036491,11.98994492,139.67,139.66,0.77]
[1764301036894,11.98994492,139.67,139.66,7.93024631]
[1764301037303,11.98994492,139.67,139.66,0.1]
[1764301040594,3.18,139.67,139.66,4.20758938]
[1764301042207,3.18,139.67,139.66,3.54758938]
[1764301042615,3.18,139.67,139.66,11.36783569]
[1764301061227,3.18,139.67,139.66,10.70783569]
[1764301064025,9.49994492,139.69,139.66,28.60845147]
[1764301064211,3.16,139.68,139.66,25.16086209]
[1764301064400,3.16,139.68,139.67,3.44758938]
[1764301064828,3.16,139.68,139.67,10.60732303]
[1764301064829,3.85,139.68,139.67,10.60732303]
[1764301069229,3.16,139.68,139.67,10.60732303]
[1764301069412,3.85,139.68,139.67,10.60732303]
[1764301069948,3.85,139.68,139.67,7.15973365]
[1764301070234,3.85,139.68,139.67,10.60732303]
[1764301070835,3.85,139.68,139.67,7.15973365]
[1764301071037,3.85,139.68,139.67,10.60732303]
[1764301072826,3.85,139.68,139.67,7.15973365]
[1764301074643,0.69,139.68,139.67,7.15973365]
[1764301074828,3.85,139.68,139.67,7.15973365]
[1764301075630,3.16,139.68,139.67,7.15973365]
[1764301076228,3.85,139.68,139.67,7.15973365]
[1764301076837,3.85,139.68,139.67,10.60732303]
[1764301077032,3.16,139.68,139.67,10.60732303]
[1764301077823,3.85,139.68,139.67,10.60732303]
[1764301080640,3.85,139.68,139.67,9.36618678]
[1764301091653,3.85,139.68,139.66,25.16086209]
[1764301091953,3.85,139.68,139.67,2.20645313]
[1764301092729,3.85,139.68,139.67,9.36618678]
[1764301093053,3.85,139.68,139.67,2.20645313]
[1764301093771,3.85,139.68,139.66,0.1]
[1764301094052,9.51994492,139.67,139.66,0.1]
[1764301097858,16.67967857,139.67,139.66,0.1]
[1764301121775,8.80994492,139.67,139.66,0.1]
[1764301121947,8.80994492,139.67,139.66,2.30645313]
[1764301122152,9.47994492,139.67,139.66,2.30645313]
[1764301122448,3.16,139.68,139.66,2.99645313]
[1764301122449,8.80994492,139.68,139.66,2.99645313]
[1764301122668,8.80994492,139.68,139.67,2.89645313]
[1764301122866,11.96994492,139.68,139.67,2.89645313]
[1764301123069,11.96994492,139.68,139.67,2.20645313]
[1764301123270,11.96994492,139.68,139.67,2.89645313]
[1764301123471,8.80994492,139.68,139.67,2.89645313]
[1764301123662,11.96994492,139.68,139.67,2.89645313]
[1764301124272,11.96994492,139.68,139.67,2.20645313]
[1764301124671,11.96994492,139.68,139.66,7.94979552]
[1764301124978,11.96994492,139.68,139.66,10.15624865]
[1764301126264,11.96994492,139.68,139.67,2.20645313]
[1764301129078,11.96994492,139.68,139.67,9.36618678]
[1764301129286,3.16,139.68,139.67,10.05618678]
[1764301133379,0.67,139.7,139.67,10.05618678]
[1764301133585,3.16,139.68,139.67,7.84973365]
[1764301134686,3.16,139.68,139.67,10.05618678]
[1764301135186,3.16,139.68,139.67,7.84973365]
[1764301136081,3.16,139.68,139.67,10.05618678]
[1764301136278,3.16,139.68,139.67,7.84973365]
[1764301136473,3.16,139.68,139.67,10.05618678]
[1764301138291,3.16,139.68,139.66,7.95024631]
[1764301138469,3.16,139.68,139.67,2.20645313]
[1764301139570,3.16,139.68,139.67,9.36618678]
[1764301140683,3.16,139.68,139.67,10.60726388]
[1764301140861,3.83,139.68,139.67,7.15973365]
[1764301141067,3.16,139.68,139.67,3.44753023]
[1764301141988,3.83,139.68,139.67,3.44753023]
[1764301142298,3.16,139.68,139.67,10.60726388]
[1764301142485,8.80994492,139.67,139.66,0.1]
[1764301142666,9.47994492,139.67,139.66,0.1]
[1764301144390,16.63967857,139.67,139.66,0.1]
[1764301145995,9.47994492,139.67,139.66,0.1]
[1764301155009,16.63967857,139.67,139.66,0.1]
[1764301155894,9.47994492,139.67,139.66,0.1]
[1764301156289,16.63967857,139.67,139.66,0.1]
[1764301158112,19.79967857,139.67,139.66,0.1]
[1764301171916,23.2472088,139.67,139.65,0.1]
[1764301172216,29.26633915,139.66,139.65,0.1]
[1764301172622,32.13691218,139.66,139.65,0.1]
[1764301172849,25.11880892,139.62,139.61,0.1]
[1764301173120,31.72633915,139.62,139.61,0.1]
[1764301173306,32.42633915,139.62,139.61,0.1]
[1764301173626,35.29732425,139.62,139.61,0.1]
[1764301173925,42.45962191,139.62,139.61,0.1]
[1764301177709,39.01209168,139.62,139.61,0.1]
[1764301178034,42.45962191,139.62,139.61,0.1]
[1764301183229,8.80994492,139.61,139.58,0.1]
[1764301183429,20.09028583,139.61,139.58,0.1]
[1764301183623,28.56633915,139.59,139.58,0.1]
[1764301183827,31.72633915,139.59,139.58,0.1]
[1764301184028,32.39633915,139.59,139.58,0.1]
[1764301184419,35.26814874,139.59,139.58,0.1]
[1764301185234,28.27880892,139.59,139.58,0.78]
[1764301186138,35.44264587,139.59,139.58,0.1]
[1764301189339,35.44264587,139.59,139.58,4.22753023]
[1764301189340,11.96994492,139.59,139.58,4.22753023]
[1764301189833,11.96994492,139.59,139.58,0.78]
[1764301193919,11.96994492,139.59,139.58,0.1]
[1764301194442,11.96994492,139.59,139.58,0.78]
[1764301198349,11.96994492,139.59,139.58,0.1]
[1764301200323,19.80378187,139.59,139.58,0.1]
[1764301205933,19.13378187,139.59,139.58,0.1]
[1764301206343,19.80378187,139.59,139.58,0.1]
[1764301209459,12.63994492,139.59,139.58,0.1]
[1764301210060,19.80378187,139.59,139.58,0.1]
[1764301211758,12.63994492,139.59,139.58,0.1]
[1764301212056,19.80378187,139.59,139.58,0.1]
[1764301212873,11.96994492,139.59,139.58,0.76]
[1764301216565,11.96994492,139.59,139.58,0.1]
[1764301217755,11.96994492,139.59,139.58,0.76]
[1764301218053,19.79378187,139.59,139.58,0.1]
[1764301218769,19.13378187,139.59,139.58,0.1]
[1764301224763,19.79378187,139.59,139.58,0.1]
[1764301225573,19.13378187,139.59,139.58,0.1]
[1764301227152,11.96994492,139.59,139.58,0.1]
[1764301227667,12.62994492,139.59,139.58,0.1]
[1764301227873,11.96994492,139.59,139.58,0.1]
[1764301231785,12.62994492,139.59,139.58,0.1]
[1764301236369,19.79378187,139.59,139.58,0.1]
[1764301246193,19.13378187,139.59,139.58,0.1]
[1764301246491,19.84378187,139.59,139.58,0.1]
[1764301247984,12.67994492,139.59,139.58,0.1]
[1764301248484,11.96994492,139.59,139.58,0.1]
[1764301248690,12.67994492,139.59,139.58,0.1]
[1764301250397,22.05412321,139.59,139.58,0.02395452]